[Event "LAT-ch Women 2017"]
[Site "Riga"]
[Date "2017.10.08"]
[Round "5"]
[White "Krumina, Linda"]
[Black "Berzina, Ilze"]
[Result "1/2-1/2"]
[ECO "D10"]
[WhiteElo "2096"]
[BlackElo "2245"]
[Annotator "ChessBase"]
[PlyCount "129"]
[EventDate "2017.??.??"]
[EventType "swiss"]
[EventCountry "LAT"]
[SourceTitle "playchess.com"]
[Source "ChessBase"]
[SourceQuality "1"]
[TimeControl "5400+30"]

1. d4 {[%emt 0:00:58]} d5 {[%emt 0:00:14]} 2. c4 {[%emt 0:00:06]} c6 {[%emt 0:00:06]} 3. Nc3 {[%emt 0:00:06]} dxc4 {[%emt 0:00:20]} 4. e3 {[%emt 0:00:06]} b5 {[%emt 0:02:34]} 5. a4 {[%emt 0:00:16]} b4 {[%emt 0:01:02]} 6. Ne4 {[%emt 0:00:59]} Qd5 {[%emt 0:02:31]} 7. Nd2 {[%emt 0:00:45]} Ba6 {[%emt 0:12:27]} 8. Qc2 {[%emt 0:06:17]} e5 {[%emt 0:06:03]} 9. dxe5 {[%emt 0:05:27]} Qxe5 {[%emt 0:05:41]} 10. Ngf3 {[%emt 0:09:23]} Qc7 {[%emt 0:03:40]} 11. Bxc4 {[%emt 0:06:33]} Nf6 {[%emt 0:03:33]} 12. O-O {[%emt 0:02:24]} Bxc4 {[%emt 0:03:39]} 13. Nxc4 {[%emt 0:02:32]} Be7 {[%emt 0:00:19]} 14. b3 {[%emt 0:09:44]} O-O {[%emt 0:00:12]} 15. Bb2 {[%emt 0:00:19]} Nbd7 {[%emt 0:00:38]} 16. Rac1 {[%emt 0:03:13]} Rac8 {[%emt 0:03:41]} 17. h3 {[%emt 0:05:14]} Rfe8 {[%emt 0:00:40]} 18. Nce5 {[%emt 0:09:17]} Nxe5 {[%emt 0:02:41]} 19. Bxe5 {[%emt 0:01:27]} Qa5 {[%emt 0:01:36]} 20. Rfd1 {[%emt 0:02:44]} h6 {[%emt 0:02:10]} 21. Qc4 {[%emt 0:02:07]} Nd5 {[%emt 0:05:14]} 22. Qg4 {[%emt 0:07:24]} Bf8 {[%emt 0:01:16]} 23. Bb2 {[%emt 0:10:37]} Red8 {[%emt 0:07:41]} 24. Ne5 {[%emt 0:03:37]} Nc3 {[%emt 0:09:00]} 25. Rxd8 {[%emt 0:02:28]} Qxd8 {[%emt 0:00:02]} 26. Bxc3 {[%emt 0:00:47]} bxc3 {[%emt 0:00:03]} 27. Rxc3 {[%emt 0:00:23]} c5 {[%emt 0:00:28]} 28. Rd3 {[%emt 0:01:15]} Qc7 {[%emt 0:01:33]} 29. Qf5 {[%emt 0:02:31]} Re8 {[%emt 0:00:59]} 30. Nc4 {[%emt 0:00:55]} Rd8 {[%emt 0:01:28]} 31. Rd5 {[%emt 0:01:36]} g6 {[%emt 0:03:06]} 32. Qd3 {[%emt 0:00:38]} Rxd5 {[%emt 0:05:43]} 33. Qxd5 {[%emt 0:00:01]} Bg7 {[%emt 0:00:18]} 34. Qa8+ {[%emt 0:01:44]} Kh7 {[%emt 0:00:43]} 35. Qd5 {[%emt 0:00:09]} Kg8 {[%emt 0:00:13]} 36. Nd6 {[%emt 0:01:27]} Qd7 {[%emt 0:00:25]} 37. e4 {[%emt 0:00:21]} Qe7 {[%emt 0:06:01]} 38. g3 {[%emt 0:01:21]} Be5 {[%emt 0:01:04]} 39. Nc4 {[%emt 0:00:43]} Bd4 {[%emt 0:00:10]} 40. Kg2 {[%emt 0:00:47]} Qf6 {[%emt 0:01:21]} 41. f4 {[%emt 0:00:34]} g5 {[%emt 0:01:18]} 42. f5 {[%emt 0:00:29]} h5 {[%emt 0:00:27]} 43. g4 {[%emt 0:01:01]} hxg4 {[%emt 0:01:28]} 44. hxg4 {[%emt 0:00:01]} Qh6 {[%emt 0:02:50]} 45. Nd6 {[%emt 0:00:09]} Qf6 {[%emt 0:00:02]} 46. Nc4 {[%emt 0:00:43]} Qh6 {[%emt 0:00:41]} 47. Ne5 {[%emt 0:00:47]} Bxe5 {[%emt 0:00:50]} 48. Qxe5 {[%emt 0:00:01]} Qa6 {[%emt 0:00:20]} 49. Qe8+ {[%emt 0:01:18]} Kg7 {[%emt 0:00:07]} 50. Qb5 {[%emt 0:00:13]} Qf6 {[%emt 0:01:14]} 51. Qxc5 {[%emt 0:00:46]} Qb2+ {[%emt 0:00:08]} 52. Qf2 {[%emt 0:00:07]} Qxb3 {[%emt 0:00:33]} 53. Qd4+ {[%emt 0:00:20]} Kh7 {[%emt 0:01:56]} 54. e5 {[%emt 0:01:11]} Qc2+ {[%emt 0:01:40]} 55. Kf3 {[%emt 0:00:25]} Qc6+ {[%emt 0:01:02]} 56. Qe4 {[%emt 0:00:18]} Qc3+ {[%emt 0:00:08]} 57. Qe3 {[%emt 0:00:12]} Qc6+ {[%emt 0:00:09]} 58. Kg3 {[%emt 0:00:34]} Qc7 {[%emt 0:00:55]} 59. Kh3 {[%emt 0:00:46]} Qc6 {[%emt 0:00:24]} 60. Qxg5 {[%emt 0:00:42]} Qh1+ {[%emt 0:00:09]} 61. Kg3 {[%emt 0:00:03]} Qg1+ {[%emt 0:01:14]} 62. Kf3 {[%emt 0:00:16]} Qf1+ {[%emt 0:00:09]} 63. Ke4 {[%emt 0:00:40]} Qc4+ {[%emt 0:00:06]} 64. Kf3 {[%emt 0:00:26]} Qf1+ {[%emt 0:00:07]} 65. Ke4 1/2-1/2

[Event "LAT-ch Women 2017"]
[Site "Riga"]
[Date "2017.10.08"]
[Round "5"]
[White "Lazdina, Ingrida"]
[Black "Ungure, Liga"]
[Result "0-1"]
[ECO "A25"]
[WhiteElo "1937"]
[BlackElo "1923"]
[Annotator "NA"]
[PlyCount "132"]
[EventDate "2017.??.??"]
[EventType "swiss"]
[EventCountry "LAT"]
[SourceTitle "playchess.com"]
[Source "ChessBase"]
[SourceQuality "1"]
[TimeControl "5400+30"]

1. c4 {[%emt 0:00:56]} e5 {[%emt 0:00:17]} 2. Nc3 {[%emt 0:00:17]} Nc6 {[%emt 0:00:09]} 3. d3 {[%emt 0:00:10]} g6 {[%emt 0:00:22]} 4. g3 {[%emt 0:00:17]} Bg7 {[%emt 0:00:26]} 5. Bg2 {[%emt 0:00:07]} f5 {[%emt 0:01:36]} 6. e3 {[%emt 0:07:53]} Nf6 {[%emt 0:00:52]} 7. Nge2 {[%emt 0:02:05]} O-O {[%emt 0:02:45]} 8. O-O {[%emt 0:01:41]} d6 {[%emt 0:00:30]} 9. a3 {[%emt 0:01:20]} Be6 {[%emt 0:01:59] A21: Englische Eröffnung} (9... Rb8 10. Bd2 Bd7 11. Rc1 Kh8 12. b4 {½-½ (12) Ghaem Maghami,E (2552)-Iuldachev,S (2550) Teheran 2004}) 10. Qc2 {[%emt 0:02:36]} Qd7 {[%emt 0:06:33]} 11. b3 {[%emt 0:07:15]} d5 $146 {[%emt 0:09:33]} ({Vorgänger:} 11... Rae8 12. Bb2 g5 13. d4 exd4 14. Nxd4 Nxd4 15. exd4 c6 16. Qd2 d5 17. cxd5 Nxd5 18. Qxg5 Nxc3 19. Bxc3 Bxb3 {0-1 (55) Buschmann,S-Windelband,J (2101) Germany 2003}) 12. cxd5 {[%emt 0:05:25]} Nxd5 {[%emt 0:00:18]} 13. Bb2 {[%emt 0:01:08]} Nb6 {[%emt 0:12:35]} 14. f4 {[%emt 0:12:54]} Rad8 {[%emt 0:04:02]} 15. Rad1 {[%emt 0:01:14]} Qf7 {[%emt 0:07:13]} 16. Nc1 {[%emt 0:01:59]} exf4 {[%emt 0:05:15]} 17. gxf4 {[%emt 0:00:47]} Nd5 {[%emt 0:01:17]} 18. Nxd5 {[%emt 0:02:26]} Bxd5 {[%emt 0:00:06]} 19. Bxg7 {[%emt 0:04:29]} Kxg7 {[%emt 0:00:55]} 20. Qc3+ {[%emt 0:02:43]} Kg8 {[%emt 0:01:16]} 21. e4 {[%emt 0:01:49]} Be6 {[%emt 0:02:34]} 22. e5 {[%emt 0:08:16]} Nd4 {[%emt 0:05:22]} 23. b4 {[%emt 0:08:01]} c6 {[%emt 0:04:47]} 24. Rf2 {[%emt 0:03:25]} Qc7 {[%emt 0:02:59]} 25. Ne2 {[%emt 0:09:02] [#]} Qb6 $1 {[%emt 0:01:43]} 26. Qb2 {[%emt 0:04:16]} Nxe2+ {[%emt 0:06:54]} 27. Qxe2 {[%emt 0:00:04]} Rd4 {[%emt 0:00:25]} 28. Kh1 {[%emt 0:04:54]} Rfd8 {[%emt 0:00:50]} 29. Qc2 {[%emt 0:01:41]} Qa6 {[%emt 0:03:57]} 30. Bf1 {[%emt 0:05:07]} Qxa3 {[%emt 0:01:05]} 31. Qc5 {[%emt 0:00:18]} R8d7 {[%emt 0:04:11]} 32. Kg1 {[%emt 0:00:47]} Rxb4 {[%emt 0:03:38]} 33. d4 {[%emt 0:00:12]} Ra4 {[%emt 0:01:35]} 34. Qxa3 {[%emt 0:00:10]} Rxa3 {[%emt 0:00:02]} 35. Bg2 {[%emt 0:00:21]} Kf7 {[%emt 0:03:00]} 36. Rb2 {[%emt 0:00:15]} a5 {[%emt 0:00:37]} 37. Rdb1 {[%emt 0:01:30]} Rxd4 $2 {[%emt 0:01:54]} (37... a4 $19 38. Rxb7 Rc3) 38. Rxb7+ {[%emt 0:00:07]} Rd7 {[%emt 0:01:20]} 39. Bxc6 {[%emt 0:00:12]} Rxb7 {[%emt 0:00:15]} 40. Rxb7+ {[%emt 0:00:05]} Kf8 {[%emt 0:00:58]} 41. Rxh7 {[%emt 0:00:14]} Rc3 {[%emt 0:00:29]} 42. Bb5 {[%emt 0:01:24]} Rb3 {[%emt 0:00:35]} 43. Bc6 {[%emt 0:00:44] [#]} Rb6 $1 {[%emt 0:01:07]} 44. Rc7 {[%emt 0:00:23]} (44. Bg2 $17) 44... Rb4 {[%emt 0:02:15]} 45. Ra7 {[%emt 0:00:50]} Rxf4 {[%emt 0:00:48]} 46. Rxa5 {[%emt 0:00:02]} g5 {[%emt 0:00:47]} 47. Ra8+ {[%emt 0:00:31]} Kg7 {[%emt 0:00:40]} 48. Ra7+ {[%emt 0:00:08]} Kf8 {[%emt 0:00:29]} 49. Ra8+ {[%emt 0:00:09]} Ke7 {[%emt 0:00:30]} 50. Ra7+ {[%emt 0:01:29]} Kd8 {[%emt 0:00:32]} 51. Rg7 {[%emt 0:00:42]} g4 {[%emt 0:00:22]} 52. Kg2 {[%emt 0:00:30]} Rc4 {[%emt 0:00:13]} 53. Bb7 {[%emt 0:00:07]} f4 {[%emt 0:00:33]} 54. Rg6 {[%emt 0:00:53]} Rc2+ {[%emt 0:00:45]} 55. Kg1 {[%emt 0:00:15]} Ke7 {[%emt 0:00:28]} 56. Rg7+ {[%emt 0:00:32]} Kf8 {[%emt 0:00:11]} (56... Ke8 57. Rg6 Rc1+ 58. Kf2) 57. Rg5 $2 {[%emt 0:00:14]} Kf7 {[%emt 0:01:18]} (57... f3 $17 58. Ba6 Rg2+ 59. Kf1 Rxh2) 58. Be4 $1 {[%emt 0:00:05]} Re2 {[%emt 0:00:30]} 59. Bg6+ {[%emt 0:01:16]} (59. Bf5 $11) 59... Ke7 {[%emt 0:00:20]} 60. Bh5 $2 {[%emt 0:00:18]} (60. Bd3 $17 Re3 61. Bb5) 60... f3 {[%emt 0:00:52]} 61. Bxg4 {[%emt 0:00:48]} Rg2+ {[%emt 0:00:12]} 62. Kf1 {[%emt 0:00:23]} Bxg4 {[%emt 0:00:33]} 63. h4 {[%emt 0:00:41]} Bh3 {[%emt 0:00:50]} 64. Rxg2 {[%emt 0:00:17]} fxg2+ {[%emt 0:00:07]} 65. Kf2 {[%emt 0:00:17]} Ke6 {[%emt 0:00:01]} 66. h5 {[%emt 0:00:36]} Kxe5 {[%emt 0:00:01]} 0-1

[Event "LAT-ch Women 2017"]
[Site "Riga"]
[Date "2017.10.08"]
[Round "5"]
[White "Golsta, Madara"]
[Black "Sarnovska, Eira"]
[Result "0-1"]
[ECO "C01"]
[WhiteElo "1716"]
[BlackElo "1727"]
[Annotator "NA"]
[PlyCount "80"]
[EventDate "2017.??.??"]
[EventType "swiss"]
[EventCountry "LAT"]
[SourceTitle "playchess.com"]
[Source "ChessBase"]
[SourceQuality "1"]
[TimeControl "5400+30"]

1. e4 {[%emt 0:00:00]} e6 {[%emt 0:00:04]} 2. d4 {[%emt 0:00:42]} d5 {[%emt 0:00:08]} 3. exd5 {[%emt 0:01:16]} exd5 {[%emt 0:00:08]} 4. Nf3 {[%emt 0:00:33]} Nf6 {[%emt 0:05:20]} 5. Bd3 {[%emt 0:01:58]} Bg4 {[%emt 0:06:08]} 6. O-O {[%emt 0:06:26]} Be7 {[%emt 0:01:05]} 7. h3 {[%emt 0:01:21]} Bh5 {[%emt 0:00:10]} 8. Bf4 {[%emt 0:00:30]} O-O {[%emt 0:00:31]} 9. Nbd2 {[%emt 0:02:36]} c5 {[%emt 0:04:03]} 10. dxc5 {[%emt 0:03:04]} Bxc5 {[%emt 0:00:17]} 11. Nb3 {[%emt 0:00:56]} Bb6 {[%emt 0:00:44]} 12. c3 {[%emt 0:02:56]} Nc6 {[%emt 0:01:21]} 13. Bg5 {[%emt 0:08:27]} Qd6 {[%emt 0:03:42]} 14. Be2 {[%emt 0:01:51]} Ne4 {[%emt 0:03:06]} 15. Bh4 {[%emt 0:03:22]} f6 {[%emt 0:08:12]} 16. g4 {[%emt 0:04:23]} Bf7 {[%emt 0:02:28]} 17. Kg2 {[%emt 0:01:37]} Bc7 {[%emt 0:06:23]} 18. Bd3 {[%emt 0:02:48]} g5 {[%emt 0:09:41]} 19. Bxe4 {[%emt 0:09:25]} dxe4 {[%emt 0:00:20]} 20. Bg3 {[%emt 0:00:18]} Qxd1 {[%emt 0:03:26]} 21. Raxd1 {[%emt 0:00:11]} exf3+ {[%emt 0:00:11]} 22. Kxf3 {[%emt 0:00:05]} Bxg3 {[%emt 0:00:53]} 23. Kxg3 {[%emt 0:00:08]} Rad8 {[%emt 0:00:42]} 24. Nc5 {[%emt 0:00:43]} b6 {[%emt 0:01:15]} 25. Ne4 {[%emt 0:00:14]} Kg7 {[%emt 0:01:27]} 26. b3 {[%emt 0:00:46]} Rxd1 {[%emt 0:01:00]} 27. Rxd1 {[%emt 0:00:07]} Rd8 {[%emt 0:00:09]} 28. Rxd8 {[%emt 0:00:18]} Nxd8 {[%emt 0:00:04]} 29. Nd6 {[%emt 0:00:06]} Nc6 {[%emt 0:01:14]} 30. h4 {[%emt 0:00:23]} Bg6 {[%emt 0:06:08]} 31. hxg5 {[%emt 0:00:18]} fxg5 {[%emt 0:00:07]} 32. f4 {[%emt 0:00:07]} gxf4+ {[%emt 0:00:59]} 33. Kxf4 {[%emt 0:02:52]} Kf6 {[%emt 0:00:05]} 34. b4 {[%emt 0:01:55]} Ke6 {[%emt 0:01:03]} 35. Nc4 {[%emt 0:00:06]} Ne7 {[%emt 0:00:52]} 36. Ne3 {[%emt 0:01:07]} Nd5+ {[%emt 0:00:35]} 37. Nxd5 {[%emt 0:00:05]} Kxd5 {[%emt 0:00:05]} 38. a4 {[%emt 0:00:09]} Kc4 {[%emt 0:00:11]} 39. a5 {[%emt 0:00:06]} Kxc3 {[%emt 0:00:22]} 40. axb6 {[%emt 0:00:08]} axb6 {[%emt 0:00:03]} 0-1

[Event "LAT-ch Women 2017"]
[Site "Riga"]
[Date "2017.10.08"]
[Round "5"]
[White "Vainovska, Valentina"]
[Black "Golsta, Ramona"]
[Result "1/2-1/2"]
[ECO "A04"]
[WhiteElo "1676"]
[BlackElo "1719"]
[Annotator "NA"]
[PlyCount "70"]
[EventDate "2017.??.??"]
[EventType "swiss"]
[EventCountry "LAT"]
[SourceTitle "playchess.com"]
[Source "ChessBase"]
[SourceQuality "1"]
[TimeControl "5400+30"]

1. Nf3 {[%emt 0:00:00]} f5 {[%emt 0:00:10]} 2. d4 {[%emt 0:03:29]} Nf6 {[%emt 0:00:24]} 3. c4 {[%emt 0:02:31]} e6 {[%emt 0:01:12]} 4. Nc3 {[%emt 0:00:59]} c6 {[%emt 0:00:40]} 5. e3 {[%emt 0:03:28]} d5 {[%emt 0:00:15]} 6. Bd3 {[%emt 0:01:52]} Bd6 {[%emt 0:00:16]} 7. Qc2 {[%emt 0:01:54]} Ne4 {[%emt 0:03:08]} 8. a3 {[%emt 0:07:58]} a5 {[%emt 0:01:59]} 9. c5 {[%emt 0:06:42]} Bc7 {[%emt 0:00:21]} 10. Rb1 {[%emt 0:02:16]} O-O {[%emt 0:01:24]} 11. b4 {[%emt 0:00:37]} b5 {[%emt 0:06:13]} 12. cxb6 {[%emt 0:00:51]} Bxb6 {[%emt 0:00:09]} 13. Na4 {[%emt 0:04:19]} Bc7 {[%emt 0:01:55]} 14. Nc5 {[%emt 0:04:16]} axb4 {[%emt 0:04:10]} 15. axb4 {[%emt 0:00:11]} Qf6 {[%emt 0:02:04]} 16. O-O {[%emt 0:03:12]} Nd7 {[%emt 0:01:34]} 17. Nxd7 {[%emt 0:02:11]} Bxd7 {[%emt 0:00:08]} 18. b5 {[%emt 0:00:22]} Rab8 {[%emt 0:07:05]} 19. Ba3 {[%emt 0:06:13]} Rfc8 {[%emt 0:00:39]} 20. bxc6 {[%emt 0:01:15]} Rxb1 {[%emt 0:07:17]} 21. Rxb1 {[%emt 0:00:25]} Bxc6 {[%emt 0:00:17]} 22. Ba6 {[%emt 0:08:20]} Bb7 {[%emt 0:00:26]} 23. Qd3 {[%emt 0:06:39]} Bxa6 {[%emt 0:05:56]} 24. Qxa6 {[%emt 0:00:08]} Re8 {[%emt 0:03:25]} 25. Qc6 {[%emt 0:05:53]} Qd8 {[%emt 0:01:00]} 26. Rb7 {[%emt 0:03:10]} Bd6 {[%emt 0:02:44]} 27. Bxd6 {[%emt 0:06:58]} Nxd6 {[%emt 0:00:03]} 28. Rc7 {[%emt 0:02:10]} h6 {[%emt 0:08:49]} 29. g3 {[%emt 0:00:55]} Nc4 {[%emt 0:00:52]} 30. Qb7 {[%emt 0:04:15]} Qf6 {[%emt 0:01:40]} 31. h4 {[%emt 0:01:53]} g5 {[%emt 0:08:18]} 32. hxg5 {[%emt 0:03:33]} hxg5 {[%emt 0:00:09]} 33. Kg2 {[%emt 0:02:07]} Rf8 {[%emt 0:01:26]} 34. Re7 {[%emt 0:01:54]} g4 {[%emt 0:03:28]} 35. Nh4 {[%emt 0:01:18]} Nb6 {[%emt 0:11:16]} 1/2-1/2

[Event "LAT-ch Women 2017"]
[Site "Riga"]
[Date "2017.10.08"]
[Round "5"]
[White "Osobskaja, Zinaida"]
[Black "Maklakova, Nellija"]
[Result "0-1"]
[ECO "C01"]
[WhiteElo "1646"]
[BlackElo "1800"]
[Annotator "NA"]
[PlyCount "56"]
[EventDate "2017.??.??"]
[EventType "swiss"]
[EventCountry "LAT"]
[SourceTitle "playchess.com"]
[Source "ChessBase"]
[SourceQuality "1"]
[TimeControl "5400+30"]

1. e4 {[%emt 0:00:00]} e6 {[%emt 0:01:22]} 2. d4 {[%emt 0:00:00]} d5 {[%emt 0:00:05]} 3. exd5 {[%emt 0:02:58]} exd5 {[%emt 0:00:06]} 4. Bd3 {[%emt 0:00:20]} Be7 {[%emt 0:01:26]} 5. h3 {[%emt 0:01:11]} Nf6 {[%emt 0:00:27]} 6. Nf3 {[%emt 0:02:22]} O-O {[%emt 0:02:58]} 7. O-O {[%emt 0:01:55]} Nc6 {[%emt 0:02:21]} 8. c3 {[%emt 0:00:21]} Ne4 {[%emt 0:01:57]} 9. Qc2 {[%emt 0:06:02]} f5 {[%emt 0:00:52]} 10. Ne5 {[%emt 0:07:18]} Nxe5 {[%emt 0:02:24]} 11. dxe5 Bc5 12. Kh2 {[%emt 0:01:36]} Qh4 {[%emt 0:05:13]} 13. g3 {[%emt 0:00:55]} Qh5 {[%emt 0:01:21]} 14. f4 {[%emt 0:00:51]} Bd7 {[%emt 0:04:01]} 15. b4 {[%emt 0:04:15]} Bb6 {[%emt 0:01:22]} 16. a4 {[%emt 0:00:40]} a6 {[%emt 0:02:48]} 17. c4 {[%emt 0:03:19]} dxc4 {[%emt 0:04:19]} 18. Bxc4+ {[%emt 0:01:41]} Kh8 {[%emt 0:00:30]} 19. Bd5 {[%emt 0:00:02]} c6 {[%emt 0:03:08]} 20. Bxe4 {[%emt 0:00:30]} fxe4 {[%emt 0:00:01]} 21. Qg2 {[%emt 0:02:15]} Bg4 {[%emt 0:08:34]} 22. Ra3 {[%emt 0:04:29]} Bf3 {[%emt 0:07:24]} 23. Qc2 {[%emt 0:04:41]} Be2 {[%emt 0:16:40]} 24. Re1 {[%emt 0:05:28]} Bd3 {[%emt 0:00:37]} 25. Rxd3 {[%emt 0:00:14]} exd3 {[%emt 0:00:05]} 26. Qxd3 {[%emt 0:00:07]} Rad8 {[%emt 0:03:07]} 27. Qc2 {[%emt 0:05:08]} Qf3 {[%emt 0:02:06]} 28. Nc3 {[%emt 0:00:51]} Bf2 {[%emt 0:01:34]} 0-1

[Event "LAT-ch Women 2017"]
[Site "Riga"]
[Date "2017.10.08"]
[Round "5"]
[White "Zalcmane, Vija"]
[Black "Parhomenko, Margarita"]
[Result "0-1"]
[ECO "A22"]
[WhiteElo "1533"]
[BlackElo "1919"]
[Annotator "NA"]
[PlyCount "90"]
[EventDate "2017.??.??"]
[EventType "swiss"]
[EventCountry "LAT"]
[SourceTitle "playchess.com"]
[Source "ChessBase"]
[SourceQuality "1"]
[TimeControl "5400+30"]

1. c4 {[%emt 0:00:00]} e5 {[%emt 0:00:11]} 2. Nc3 {[%emt 0:00:00]} Nf6 {[%emt 0:00:09]} 3. g3 {[%emt 0:00:00]} Bb4 {[%emt 0:00:16]} 4. Bg2 {[%emt 0:00:45]} Bxc3 {[%emt 0:01:53]} 5. bxc3 {[%emt 0:00:40]} Nc6 {[%emt 0:00:55] A21: English Opening: 1...e5 2 Nc3} (5... O-O 6. Nf3 Re8 7. O-O e4 8. Ne1 Nc6 9. d3 d5 10. cxd5 Qxd5 11. Nc2 Qh5 12. Ne3 Bh3 13. d4 Rad8 14. Rb1 b6 15. Qa4 Na5 16. Qb5 Qxb5 17. Rxb5 Bxg2 18. Kxg2 c6 {0-1 (48) Ipatov,A (2613)-Sokolov,I (2650) Dubai 2014}) 6. d3 {[%emt 0:00:45]} d6 {[%emt 0:01:52]} 7. Nf3 {[%emt 0:00:23]} h6 {[%emt 0:06:25]} 8. O-O {[%emt 0:02:48]} Be6 {[%emt 0:00:39]} 9. h3 {[%emt 0:00:16]} O-O {[%emt 0:04:00]} 10. Rb1 {[%emt 0:00:49]} Rb8 {[%emt 0:00:17]} 11. e4 {[%emt 0:09:19]} Nd7 {[%emt 0:07:37]} 12. Be3 {[%emt 0:09:18]} f5 {[%emt 0:03:39]} 13. exf5 {[%emt 0:03:03]} Bxf5 {[%emt 0:00:37]} 14. Nh4 $146 {[%emt 0:01:08]} ({Predecessor:} 14. Nh2 Nf6 15. Ng4 Kh8 16. Kh2 Qe8 17. Nxf6 Rxf6 18. Rb2 b6 19. Re2 Qd7 20. g4 Be6 21. f4 exf4 22. Rxf4 Rbf8 {½-½ (22) Morley,P (2262)-Alvarez Villar,H (2333) ICCF email 2011}) 14... Be6 {[%emt 0:05:35]} 15. Bd5 {[%emt 0:03:12]} Bxd5 {[%emt 0:10:40]} 16. cxd5 {[%emt 0:00:52]} Ne7 {[%emt 0:00:42]} 17. c4 {[%emt 0:01:29]} b6 {[%emt 0:06:50]} 18. Rb2 {[%emt 0:18:01]} Nf6 {[%emt 0:05:17]} 19. Kh2 {[%emt 0:10:23]} Qd7 {[%emt 0:03:59]} 20. g4 {[%emt 0:00:55]} g5 {[%emt 0:02:12]} 21. Ng2 {[%emt 0:00:28]} Ng6 {[%emt 0:02:16]} 22. f3 {[%emt 0:03:10]} Rbe8 {[%emt 0:05:25]} 23. d4 {[%emt 0:05:12]} Nf4 {[%emt 0:07:01]} (23... a6 $15) 24. dxe5 {[%emt 0:02:21]} dxe5 {[%emt 0:00:55]} 25. Qc2 {[%emt 0:06:06]} Kg7 {[%emt 0:04:34]} 26. Qd1 {[%emt 0:02:48]} (26. Nxf4 $11 gxf4 27. Bf2) 26... Qd6 {[%emt 0:00:40]} 27. Nxf4 {[%emt 0:03:13]} gxf4 {[%emt 0:00:18]} 28. Bf2 {[%emt 0:00:40]} e4 {[%emt 0:04:55]} 29. fxe4 {[%emt 0:02:02]} (29. Bd4 $11 {keeps the balance.}) 29... Rxe4 {[%emt 0:00:35]} ({Günstiger ist} 29... Nxe4 $17 30. Kh1 Nxf2+ 31. Rbxf2 Re4) 30. Qd3 {[%emt 0:02:06]} Qe5 {[%emt 0:04:25]} (30... c5 $15) 31. Rd2 {[%emt 0:01:04]} Re8 {[%emt 0:00:55]} (31... Re3 $5 32. Qd4 Qd6 $11) 32. Kg1 {[%emt 0:02:21]} h5 {[%emt 0:03:46]} 33. Bd4 {[%emt 0:01:04]} Qg5 {[%emt 0:00:52]} 34. Rg2 {[%emt 0:01:24]} h4 {[%emt 0:01:24]} 35. Qc3 {[%emt 0:02:02]} Kf7 {[%emt 0:01:07]} 36. Rgf2 {[%emt 0:01:10]} (36. Kh2 $14) 36... Nh5 $1 {[%emt 0:01:18]} 37. Qd2 {[%emt 0:01:54] [#]} (37. Qd3 $11) 37... Kg8 $1 {[%emt 0:00:42]} 38. Kh2 {[%emt 0:01:30]} Ng3 {[%emt 0:00:04]} 39. Rg1 $2 {[%emt 0:01:35]} (39. Rd1 $17 {is a better chance.}) 39... Ne2 {[%emt 0:00:44]} 40. Rgf1 {[%emt 0:01:52]} (40. Bb2 $142 Nxg1 41. Kxg1) 40... Nxd4 {[%emt 0:00:17]} 41. Qb2 $19 {[%emt 0:01:12]} f3 {[%emt 0:01:30]} 42. Qc3 {[%emt 0:00:43]} Qf4+ {[%emt 0:01:01]} 43. Kh1 {[%emt 0:00:26]} Qg3 {[%emt 0:00:40]} 44. Qd2 {[%emt 0:00:43]} Qxh3+ {[%emt 0:00:16]} 45. Kg1 {[%emt 0:00:38]} Rxg4+ {[%emt 0:00:05]} 0-1